bitfinex/quotes_ETHUSD_20240828
["timestamp","ask_amount","ask_price","bid_price","bid_amount"]
[1724865260907,0.791066,2528.2,2527.7,3.95613]
[1724865261107,3.95528,2528.3,2527.7,3.95613]
[1724865262020,7.91061,2528.3,2527.7,3.95613]
[1724865262175,3.95528,2528.3,2527.7,3.95613]
[1724865262378,3.95528,2528.3,2527.3,4.03583513]
[1724865262605,0.395528,2528.2,2527.7,3.95611]
[1724865262802,4.350998,2528.2,2527.7,3.95611]
[1724865263615,3.95554,2528.1,2527.5,3.95635]
[1724865263980,7.91187,2527.9,2527.2,2.3544]
[1724865264185,3.95563,2528.1,2527.5,3.95645]
[1724865264412,7.91128,2528.1,2527.5,3.95645]
[1724865264732,5.0356808,2528.0,2527.5,3.95645]
[1724865264909,5.0356808,2528.0,2527.1,3.957]
[1724865264910,3.95592,2527.9,2527.1,3.957]
[1724865265223,3.95616,2527.7,2527.1,3.957]
[1724865265381,4.500871,2527.9,2527.4,3.95655]
[1724865265708,3.95592,2527.9,2527.4,3.95655]
[1724865266025,3.95592,2527.9,2527.3,7.91338]
[1724865266026,4.78838092,2527.9,2527.3,7.91338]
[1724865266229,4.78838092,2527.9,2527.3,3.95668]
[1724865266529,4.78838092,2527.9,2527.4,4.03574]
[1724865266693,0.83252092,2527.9,2527.4,4.03574]
[1724865266892,3.95532,2528.3,2527.7,3.95608]
[1724865267222,3.95554,2528.1,2527.6,3.95622]
[1724865267412,3.95532,2528.3,2527.5,4.03543992]
[1724865267719,3.95579,2528.0,2527.5,3.95632]
[1724865267946,3.95597,2527.9,2527.6,0.07225262]
[1724865268327,3.95564,2528.1,2527.5,3.95636]
[1724865268493,7.91126,2528.1,2527.7,0.07209511]
[1724865268818,3.95563,2528.1,2527.8,0.07199476]
[1724865268989,3.95563,2528.1,2527.6,4.03533682]
[1724865269193,3.95563,2528.1,2527.9,0.07187364]
[1724865269425,3.95563,2528.1,2527.6,0.07911682]
[1724865269597,3.95563,2528.1,2528.0,0.07177331]
[1724865269802,3.95563,2528.1,2527.6,4.03535682]
[1724865270000,3.95563,2528.1,2528.0,0.07177331]
[1724865270328,3.95563,2528.1,2527.6,4.03535682]
[1724865270495,7.91125,2528.1,2528.0,0.07177331]
[1724865270680,4.746715,2528.1,2527.5,3.95636]
[1724865270888,3.95574,2528.0,2527.5,3.95636]
[1724865271086,3.95574,2528.0,2527.5,7.99185501]
[1724865271314,3.95574,2528.0,2527.6,0.07250189]
[1724865271956,4.4304235,2528.0,2527.6,0.07250189]
[1724865272181,3.95586,2527.9,2527.5,3.95646]
[1724865272459,0.4746835,2528.0,2527.7,0.07239634]
[1724865272664,4.4303835,2528.0,2527.6,0.07249669]
[1724865272825,4.4303835,2528.0,2527.8,0.07231158]
[1724865273019,4.4303835,2528.0,2527.5,3.95646]
[1724865273221,4.4303835,2528.0,2527.9,0.07221124]
[1724865273436,3.95554,2528.1,2527.4,0.55]
[1724865273636,3.95554,2528.1,2527.9,0.07221124]
[1724865273868,3.95554,2528.1,2527.5,4.03557502]
[1724865274182,3.9558,2528.0,2527.5,4.03557502]
[1724865274461,3.95586,2527.9,2527.5,4.03557502]
[1724865274768,3.95554,2528.1,2527.5,4.03557502]
[1724865274769,3.95554,2528.1,2527.6,0.07251228]
[1724865274937,3.95587,2527.9,2527.6,0.15162699]
[1724865275124,3.95587,2527.9,2527.6,0.07251228]
[1724865275321,3.95587,2527.9,2527.4,4.50653]
[1724865275526,3.95554,2528.1,2527.5,4.02898264]
[1724865275869,3.95584,2528.0,2527.5,0.07261264]
[1724865276029,3.9556,2528.1,2527.5,0.07261264]
[1724865276423,3.95619,2527.7,2527.5,0.07261264]
[1724865276629,3.95619,2527.7,2527.2,3.95686]
[1724865276630,4.351809,2527.7,2527.2,3.95686]
[1724865276832,3.95619,2527.7,2527.6,0.07001838]
[1724865277061,3.9564,2527.6,2527.1,3.95709]
[1724865277242,3.95619,2527.7,2527.6,0.07001838]
[1724865277461,3.95601,2527.8,2527.3,3.95671]
[1724865277657,3.95601,2527.8,2527.6,0.07001838]
[1724865277825,3.95601,2527.8,2527.3,3.9567]
[1724865278380,3.95594,2527.9,2527.4,0.07021911]
[1724865278563,3.95569,2528.0,2527.6,3.95631]
[1724865278868,3.95569,2528.0,2527.7,0.07911528]
[1724865279167,0.36804469,2528.2,2527.7,0.14903331]
[1724865279168,3.95555,2528.1,2527.7,0.14903331]
[1724865279708,3.95596,2527.9,2527.7,0.06991803]
[1724865279866,3.956,2527.8,2527.7,0.06991803]
[1724865280508,7.91161,2528.0,2527.5,3.95647]
[1724865280655,3.9558,2528.0,2527.7,0.06991803]
[1724865280994,3.9558,2528.0,2527.8,0.06981768]
[1724865281296,3.9558,2528.0,2527.5,3.95639]
[1724865281459,3.9558,2528.0,2527.9,0.06971734]
[1724865281801,4.74693,2528.0,2527.9,0.06971734]
[1724865281972,8.70271,2528.0,2527.5,3.95639]
[1724865282180,4.74691,2528.0,2527.9,0.06971734]
[1724865282374,3.95588,2527.9,2527.3,3.95674]
[1724865282577,0.41367769,2528.1,2527.9,0.06971734]
[1724865282578,2.3815,2528.0,2527.9,0.06971734]
[1724865282787,3.95688,2527.3,2526.7,3.95765]
[1724865282991,3.95657,2527.5,2526.8,0.07913866]
[1724865283193,3.95718,2527.1,2526.8,0.0708215]
[1724865283405,3.95718,2527.1,2526.5,6.32744]
[1724865283406,0.395718,2527.0,2526.5,6.32744]
[1724865283602,3.95718,2527.1,2526.9,0.07072108]
[1724865283776,3.95698,2527.2,2526.6,3.95785]
[1724865283965,3.95698,2527.2,2527.0,0.07082814]
[1724865284165,4.981227,2527.2,2526.6,3.95785]
[1724865284404,3.95656,2527.5,2527.1,0.07072774]
[1724865284565,3.95656,2527.5,2526.9,3.95731]
[1724865284767,0.395656,2527.4,2527.2,0.07078299]
[1724865284967,0.395656,2527.4,2526.9,4.03644867]
[1724865285165,0.395656,2527.4,2527.3,0.07068261]
[1724865285166,8.309166,2527.4,2527.3,0.07068261]
[1724865285391,3.95705,2527.2,2526.6,3.95778]
[1724865285577,0.395705,2527.1,2526.6,3.95778]
[1724865285780,4.352825,2527.1,2526.7,0.07128504]
[1724865286478,4.352825,2527.1,2526.5,7.9159]
[1724865286690,4.352825,2527.1,2526.8,0.07118462]
[1724865286930,4.352825,2527.1,2526.9,0.0710842]
[1724865287119,4.352825,2527.1,2526.5,7.91587]
[1724865287329,4.352825,2527.1,2526.6,3.95788]
[1724865287545,4.352825,2527.1,2526.6,4.02926548]
[1724865288053,0.395705,2527.1,2526.6,4.02926548]
[1724865288754,7.9135,2527.4,2526.7,3.95766]
[1724865288919,7.9135,2527.4,2526.8,0.07118462]
[1724865289269,3.95696,2527.2,2526.8,0.07118462]
[1724865289414,0.395696,2527.1,2526.8,0.07118462]
[1724865289613,0.395696,2527.1,2526.6,7.91559]
[1724865289838,0.395696,2527.1,2526.9,0.07166527]
[1724865290035,3.95672,2527.4,2526.7,2.4555465]
[1724865290244,3.95665,2527.4,2526.9,3.95729]
[1724865290443,4.76644774,2527.4,2526.9,3.95729]
[1724865290651,4.76644774,2527.4,2527.0,0.07151816]
[1724865291011,3.95641,2527.6,2527.0,0.07151816]
[1724865291211,3.95657,2527.5,2527.0,0.07151816]
[1724865292362,3.95619,2527.7,2527.0,4.10786448]
[1724865292584,1.339469,2527.7,2527.2,3.95686]
[1724865292859,3.9561,2527.8,2527.2,3.95685]
[1724865293080,3.9561,2527.8,2527.3,0.07121698]
[1724865293223,4.36933769,2528.1,2527.3,6.50441671]
[1724865293423,4.36933769,2528.1,2527.7,3.95607]
[1724865293424,0.41367769,2528.1,2527.7,3.95607]
[1724865293754,0.41367769,2528.1,2527.6,4.03528543]
[1724865293967,0.41367769,2528.1,2527.8,0.0706062]
[1724865293968,0.43691677,2528.0,2527.8,0.0706062]
[1724865294255,0.41367769,2528.1,2527.7,0.07070654]
[1724865294460,4.36922769,2528.1,2527.9,0.07046954]
[1724865294616,3.95569,2528.0,2527.4,4.50652]
[1724865294811,3.95586,2527.9,2527.4,4.50652]
[1724865295013,3.95616,2527.7,2526.9,2.3974]
[1724865295313,3.95679,2527.3,2526.8,3.95746]
[1724865295628,3.95696,2527.2,2526.6,7.91554]
[1724865295831,0.791375,2527.2,2526.5,2.3061]
[1724865296034,3.95736,2527.0,2526.4,3.9581]
[1724865296231,7.9141,2527.2,2526.5,3.958]
[1724865296471,7.9141,2527.2,2526.4,3.9581]
[1724865296472,3.95782,2526.7,2526.1,6.26465]
[1724865296658,0.395782,2526.6,2526.1,3.95855]
[1724865296956,3.95782,2526.7,2526.1,3.95855]
[1724865296957,3.95782,2526.7,2526.2,3.95848]
[1724865297267,3.95782,2526.7,2525.9,3.95887]
[1724865297553,3.95782,2526.7,2526.1,3.95865]
[1724865297712,3.95782,2526.7,2526.2,4.03066638]
[1724865298056,6.70083305,2526.9,2526.2,4.03066638]
[1724865298057,3.95759,2526.8,2526.2,4.03066638]
[1724865298258,0.41354305,2526.9,2526.3,0.07916159]
[1724865298468,0.41354305,2526.9,2526.4,2.3987]
[1724865298620,3.95657,2527.5,2526.8,3.95757]
[1724865298966,3.95359,2529.4,2526.9,0.07913895]
[1724865298967,0.4135571,2527.4,2526.9,0.07913895]
[1724865299115,3.95595,2527.9,2526.9,0.07913895]
[1724865299116,3.95595,2527.9,2527.3,3.95679]
[1724865299330,0.41355838,2527.8,2527.3,3.95679]
[1724865299520,0.85050922,2527.8,2527.4,0.07097131]
[1724865299740,4.80652922,2527.8,2527.4,0.07097131]
[1724865299943,4.80652922,2527.8,2527.1,3.95709]
[1724865299944,4.80650922,2527.8,2527.1,3.95698]
[1724865300172,0.87624792,2527.7,2527.2,0.55]
[1724865300454,0.87624792,2527.7,2527.2,0.62117208]
[1724865300655,4.36958838,2527.8,2527.2,4.57800208]
[1724865300962,4.36958838,2527.8,2527.2,0.62117208]
[1724865301116,0.41355838,2527.8,2527.3,4.03589517]
[1724865301317,0.41355838,2527.8,2527.3,7.99246517]
[1724865301541,0.41355838,2527.8,2527.4,0.07097131]
[1724865301897,0.85048522,2527.8,2527.4,0.07097131]
[1724865303062,6.42231,2528.2,2527.5,4.50637]
[1724865303220,4.36901375,2528.1,2527.5,0.07024765]
[1724865303415,0.68359138,2528.0,2527.5,0.07024765]
[1724865303654,0.41347375,2528.1,2527.1,3.95699]
[1724865303655,3.95618,2527.7,2527.1,3.95699]
[1724865303957,3.95618,2527.7,2527.6,0.0701421]
[1724865304155,3.95618,2527.7,2527.2,0.55]
[1724865304374,3.95596,2527.9,2527.3,3.95665]
[1724865304521,8.32473375,2528.1,2527.4,3.95661]
[1724865304724,5.74824712,2528.1,2527.5,3.95638]
[1724865305023,1.79263712,2528.1,2527.5,0.07022171]
[1724865305218,0.41347375,2528.1,2527.7,3.95606]
[1724865305763,0.41347375,2528.1,2527.6,0.14922224]
[1724865305764,4.36903375,2528.1,2527.6,0.07010579]
[1724865305917,3.95585,2527.9,2527.8,0.06990509]
[1724865306117,3.95585,2527.9,2527.7,0.07000544]
[1724865306118,3.956,2527.8,2527.7,0.07000544]
[1724865306319,0.41347375,2528.1,2527.7,3.95607]
[1724865306560,0.41347375,2528.1,2527.7,4.02596245]
[1724865307220,0.85034413,2528.1,2527.7,0.06992245]
[1724865307458,0.41347375,2528.1,2527.7,0.06992245]
[1724865308072,0.41347375,2528.1,2527.7,4.02605245]
[1724865309048,0.41347375,2528.1,2527.7,0.06992245]
[1724865309328,0.41347375,2528.1,2527.6,3.95623]
[1724865309329,0.43688737,2528.0,2527.6,3.95623]
[1724865309550,0.43688737,2528.0,2527.8,0.06981173]
[1724865309754,0.43688737,2528.0,2527.7,0.06991208]
[1724865310325,3.95589,2527.9,2527.7,0.06991208]
[1724865310521,3.95589,2527.9,2527.4,3.95653]
[1724865310522,4.36910375,2528.1,2527.5,3.95646]
[1724865310746,4.36910375,2528.1,2527.8,0.06728741]
[1724865310747,8.76169712,2528.1,2527.8,0.06728741]
[1724865310948,8.76169712,2528.1,2527.3,3.95665]
[1724865310949,3.95582,2528.0,2527.3,3.95665]
[1724865311125,0.87616971,2528.0,2527.9,0.06718707]
[1724865311337,4.80601712,2528.1,2527.5,3.95636]
[1724865311535,4.80601712,2528.1,2527.9,0.06718707]
[1724865311746,3.9557,2528.0,2527.5,3.95632]
[1724865311946,8.78767171,2528.0,2527.5,3.95632]
[1724865312165,3.9561,2527.8,2527.3,3.95666]
[1724865312360,3.15137171,2528.0,2527.0,3.95723]
[1724865312672,3.95648,2527.5,2526.9,3.95732]
[1724865312964,3.95616,2527.7,2527.1,4.02513141]
[1724865313185,4.351776,2527.7,2527.1,3.95701]
[1724865313339,3.95593,2527.9,2527.3,3.95678]
[1724865313532,7.91187,2527.9,2527.3,3.95678]
[1724865313728,3.95605,2527.8,2527.4,0.06773025]
[1724865313940,3.95619,2527.7,2527.4,0.06773025]
[1724865314270,3.95619,2527.7,2527.2,3.95685]
[1724865314574,3.95593,2527.9,2527.5,0.06762988]
[1724865314876,3.95608,2527.8,2527.3,4.10371129]
[1724865315025,3.95618,2527.7,2527.6,0.06761236]
[1724865315229,3.95618,2527.7,2526.7,6.29386]
[1724865315230,3.956,2527.9,2526.7,6.29385]
[1724865315563,3.95656,2527.5,2526.9,7.91464]
[1724865315774,3.9568,2527.3,2526.7,3.95763]
[1724865315969,3.9568,2527.3,2526.7,7.91527]
[1724865315970,3.95696,2527.2,2526.7,7.91527]
[1724865316138,3.95696,2527.2,2526.7,3.95763]
[1724865316327,4.748237,2527.3,2526.7,3.95763]
[1724865316527,6.40796,2527.4,2526.9,3.95739]
[1724865316728,2.4513,2527.4,2527.0,3.95711]
[1724865317321,2.4513,2527.4,2526.3,3.95833]
[1724865317322,6.45379,2527.3,2526.3,3.95833]
[1724865317507,6.45381,2527.3,2526.8,3.95755]
[1724865317704,2.497,2527.3,2526.8,3.95755]
[1724865317905,10.794969,2527.3,2526.6,3.95774]
[1724865318231,10.794969,2527.3,2526.7,3.95772]
[1724865318738,4.37039763,2527.2,2526.6,3.95774]
[1724865318891,1.12084466,2527.1,2526.7,3.95772]
[1724865319090,1.12084466,2527.1,2526.6,3.95774]
[1724865319494,1.12084466,2527.1,2526.6,7.91554]
[1724865319696,1.12084466,2527.1,2526.6,3.95774]
[1724865320032,0.54912423,2527.0,2526.6,3.95774]
[1724865320388,0.54912423,2527.0,2526.4,3.95805]
[1724865320590,0.54912423,2527.0,2526.6,3.95787]
[1724865320797,4.37039763,2527.2,2526.7,3.9577]
[1724865321237,3.95718,2527.1,2526.6,3.95787]
[1724865321403,3.95728,2527.0,2526.5,0.55]
[1724865321956,3.95728,2527.0,2526.5,4.50793]
[1724865322644,1.38245776,2527.1,2526.6,3.95788]
[1724865322850,1.38245776,2527.1,2526.6,3.9578]
[1724865323027,0.97099054,2527.0,2526.2,3.9585]
[1724865323341,0.97099054,2527.0,2525.8,3.397]
[1724865323342,3.95844,2526.3,2525.8,6.95903]
[1724865323511,3.95867,2526.1,2525.4,7.91932]
[1724865323855,3.95867,2526.1,2525.5,3.95949]
[1724865324136,3.95867,2526.1,2525.4,3.95965]
[1724865324344,3.95867,2526.1,2525.4,3.95961]
[1724865324637,5.0215654,2526.1,2525.4,3.95961]
[1724865325598,5.0215654,2526.1,2525.4,7.91927]
[1724865325809,6.27441,2526.3,2525.6,3.95935]
[1724865326132,6.95852,2526.2,2525.6,3.95935]
[1724865326444,3.0,2526.2,2525.6,3.95945]
[1724865327328,4.323289,2526.2,2525.6,7.91878]
[1724865327635,6.27441,2526.3,2525.7,3.95927]
[1724865327840,6.22093,2526.7,2525.8,0.07917845]
[1724865328044,2.2631,2526.7,2526.1,3.95866]
[1724865328268,6.22025,2527.1,2526.3,3.95821]
[1724865328573,6.22025,2527.1,2526.2,0.0699297]
[1724865328574,0.66336976,2527.0,2526.2,0.0699297]
[1724865328855,2.2631,2527.1,2526.3,0.06982924]
[1724865328856,3.95804,2526.5,2526.3,0.06982924]
[1724865329017,3.95804,2526.5,2525.9,4.50892]
[1724865329357,6.2209,2526.7,2526.4,0.06972878]
[1724865329559,2.2631,2526.7,2526.1,3.95853]
[1724865330059,6.22083,2526.7,2526.2,0.0699297]
[1724865330244,2.2631,2526.7,2526.2,0.0699297]
[1724865330461,6.22027,2527.1,2526.3,3.95826]
[1724865330616,6.22027,2527.1,2526.3,4.02808924]
[1724865330617,3.95727,2527.0,2526.3,4.02808924]
[1724865331162,7.91495,2526.9,2526.3,4.02808924]
[1724865331317,3.95742,2526.9,2526.3,4.02808924]
[1724865331517,6.22028,2527.1,2526.3,4.02808924]
[1724865331721,6.22028,2527.1,2526.5,3.95789]
[1724865331997,0.41344763,2527.2,2526.6,3.95786]
[1724865332161,4.37039763,2527.2,2526.7,3.95772]
[1724865332545,4.37039763,2527.2,2526.8,0.06954983]
[1724865332749,5.42861239,2527.2,2526.8,0.06954983]
[1724865332961,5.42861239,2527.2,2526.5,3.95789]
[1724865333159,5.42861239,2527.2,2526.9,0.06944941]
[1724865333160,3.95711,2527.1,2526.9,0.06944941]
[1724865333331,5.42861239,2527.2,2526.6,3.95787]
[1724865333531,5.42861239,2527.2,2527.0,0.069349]
[1724865333823,5.42861239,2527.2,2527.1,0.0692486]
[1724865334044,5.42861239,2527.2,2525.3,0.09790592]
[1724865334045,6.44191,2527.1,2526.0,3.95881]
[1724865334239,6.44191,2527.1,2526.0,3.95873]
[1724865334240,3.95809,2526.5,2526.0,3.95873]
[1724865334485,3.95822,2526.4,2525.8,3.95903]
[1724865334631,2.2792,2526.5,2525.6,2.4316]
[1724865334825,2.2792,2526.5,2525.9,3.95888]
[1724865335030,4.353689,2526.6,2525.9,3.95888]
[1724865335031,8.311679,2526.6,2525.9,3.95888]
[1724865335251,3.95822,2526.4,2525.9,3.95888]
[1724865335577,3.95838,2526.3,2525.7,3.9592]
[1724865335727,3.95838,2526.3,2525.5,3.95952]
[1724865335923,7.91687,2526.3,2525.7,3.95929]
[1724865336239,3.95852,2526.2,2525.7,3.95929]
[1724865336644,4.83314679,2526.3,2525.7,3.95929]
[1724865336950,3.95838,2526.3,2525.7,3.95919]
[1724865337151,7.91685,2526.3,2525.7,3.95919]
[1724865337375,2.3945,2526.2,2525.7,3.95919]
[1724865337576,6.95825,2526.4,2525.9,3.95898]
[1724865337863,0.395799,2526.6,2526.0,0.07917461]
[1724865338067,6.95797,2526.6,2525.9,7.91773]
[1724865338260,3.95806,2526.5,2526.0,0.55]
[1724865338570,9.007799,2526.5,2525.8,3.95901]
[1724865339063,5.049639,2526.5,2525.9,3.95897]
[1724865339470,0.8049639,2526.4,2525.9,3.95897]
[1724865339692,3.0,2526.6,2526.0,3.9588]
[1724865340046,3.0,2526.6,2525.8,7.91809]
[1724865340047,3.95815,2526.5,2525.8,7.91809]
[1724865340344,5.049838,2526.4,2525.9,0.55]
[1724865340549,5.049838,2526.4,2525.8,3.95904]
[1724865340853,9.008128,2526.4,2525.8,3.95904]
[1724865341075,3.95836,2526.3,2525.8,3.95904]
[1724865341388,5.2550088,2526.3,2525.8,3.95904]
[1724865341554,5.2550088,2526.3,2525.7,3.9592]
[1724865341759,3.95851,2526.2,2525.8,0.55]
[1724865342358,3.95851,2526.2,2525.6,3.9593]
[1724865342593,3.95851,2526.2,2525.7,0.55]
[1724865342892,3.95851,2526.2,2525.8,0.07115566]
[1724865343051,3.95851,2526.2,2525.7,0.55]
[1724865343252,8.83849788,2526.2,2525.9,0.07105516]
[1724865343454,6.41351,2526.2,2525.6,3.9593]
[1724865343677,6.41351,2526.2,2526.0,0.07097541]
[1724865343992,4.600051,2526.1,2525.6,3.9593]
[1724865346089,3.95885,2526.0,2525.5,3.95952]
[1724865346265,3.95885,2526.0,2525.6,0.55]
[1724865346477,4.600061,2526.1,2525.6,4.50942]
[1724865346990,3.95883,2526.0,2525.6,4.50942]
[1724865347389,0.641351,2526.1,2525.6,4.50942]
[1724865347590,4.600151,2526.1,2525.6,4.50942]
[1724865347885,4.600041,2526.1,2525.6,4.50942]
[1724865348729,3.95886,2526.0,2525.6,0.55]
[1724865348936,5.0602321,2526.0,2525.6,0.55]
[1724865349094,3.95899,2525.9,2525.4,4.50974]
[1724865349295,3.95945,2525.7,2525.0,5.3568]
[1724865349498,3.95962,2525.5,2524.8,3.9606]
[1724865349733,3.95999,2525.3,2524.8,3.9606]
[1724865350029,3.96052,2525.0,2524.4,6.31586]
[1724865350193,3.96035,2525.1,2524.5,3.96105]
[1724865350394,3.96035,2525.1,2524.4,6.31586]
[1724865350395,3.96035,2525.1,2524.6,3.96101]
[1724865350589,3.96017,2525.2,2524.6,3.96101]
[1724865350916,3.95992,2525.4,2524.8,3.96069]
[1724865351229,3.95985,2525.4,2524.8,3.9606]
[1724865351431,3.95985,2525.4,2524.7,0.07921016]
[1724865351930,7.91975,2525.4,2524.6,3.96092]
[1724865352128,8.6349295,2525.4,2524.7,0.55]
[1724865352437,4.6750295,2525.4,2524.8,0.07920539]
[1724865352640,3.95948,2525.6,2524.9,2.8189]
[1724865352799,3.95948,2525.6,2525.0,0.07919782]
[1724865352990,3.95948,2525.6,2524.9,6.77939]
[1724865353435,3.9592,2525.8,2525.0,3.96039]
[1724865353638,7.91846,2525.8,2525.1,0.55]
[1724865353823,3.95931,2525.7,2525.1,0.55]
[1724865354207,4.63999667,2525.8,2525.1,0.55]
[1724865354208,3.95955,2525.6,2525.1,0.55]
[1724865354435,2.84876674,2525.9,2525.2,3.95996]
[1724865354737,7.91724,2526.2,2525.5,2.4565]
[1724865354941,3.95869,2526.1,2525.5,2.53568315]
[1724865355122,4.80047384,2526.1,2525.5,2.53568315]
[1724865355530,0.84178384,2526.1,2525.5,6.49516315]
[1724865355836,3.9586,2526.2,2525.5,6.49516315]
[1724865356044,3.9586,2526.2,2525.5,2.53568315]
[1724865356226,3.9586,2526.2,2525.5,6.49526315]
[1724865356428,3.95878,2526.1,2525.5,2.53568315]
[1724865356612,0.44591484,2526.1,2525.5,2.53568315]
[1724865356798,7.91724,2526.2,2525.5,6.49529315]
[1724865357003,3.9586,2526.2,2525.5,6.49526315]
[1724865357401,7.9172,2526.2,2525.5,6.49526315]
[1724865357713,9.19613328,2526.2,2525.5,6.49526315]
[1724865357920,5.23753328,2526.2,2525.6,0.07216567]
[1724865358125,1.27893328,2526.2,2525.7,3.95929]
[1724865358351,3.50054843,2526.3,2525.7,3.95929]
[1724865358637,0.50054843,2526.3,2525.8,0.07196465]
[1724865359026,4.45900843,2526.3,2525.9,0.07186415]
[1724865359201,3.95846,2526.3,2525.6,0.07918192]
[1724865359401,3.95846,2526.3,2526.0,0.07176366]
[1724865359738,4.37156438,2526.4,2525.7,3.95929]
[1724865359935,5.73933882,2526.4,2526.1,0.07166318]
[1724865360141,3.95851,2526.2,2525.5,6.416]
[1724865360301,5.73933882,2526.4,2525.7,3.95927]
[1724865360503,3.9578,2526.7,2525.9,3.95887]
[1724865360804,3.95797,2526.6,2525.9,3.95883]
[1724865360998,3.95788,2526.6,2526.0,0.55]
[1724865361222,3.95807,2526.5,2526.0,0.55]
[1724865361550,3.95788,2526.6,2526.0,0.55]
[1724865362156,3.95862,2526.2,2525.5,2.4565]
[1724865362358,3.959,2525.9,2525.3,3.95979]
[1724865362795,0.23888,2526.3,2525.5,3.95959]
[1724865362796,3.95867,2526.1,2525.5,3.95959]
[1724865363003,3.95811,2526.5,2525.9,3.95895]
[1724865363189,3.95798,2526.6,2525.9,3.95889]
[1724865363393,3.95738,2527.0,2526.3,3.95827]
[1724865363616,2.3411,2527.2,2526.1,3.95852]
[1724865363617,3.95765,2526.8,2526.1,3.95852]
[1724865363895,3.95775,2526.7,2526.1,3.95852]
[1724865364301,3.95843,2526.3,2525.7,6.26851]
[1724865364599,3.95875,2526.1,2525.3,10.34855]
[1724865364803,3.95883,2526.0,2525.4,3.95974]
[1724865364970,3.95875,2526.1,2525.3,2.4289]
[1724865364971,3.95906,2525.9,2525.3,2.4289]
[1724865365298,3.95973,2525.5,2524.9,3.96044]
[1724865365483,7.91946,2525.5,2524.9,3.96044]
[1724865365691,3.95992,2525.3,2524.8,0.0791978]
[1724865365911,3.95973,2525.5,2524.8,4.0398978]
[1724865366115,3.95993,2525.3,2524.8,0.07920239]
[1724865366428,3.95993,2525.3,2524.7,2.4289]
[1724865366592,8.945442,2525.5,2524.8,4.03982938]
[1724865366790,3.95979,2525.4,2524.7,3.96077]
[1724865367004,3.95992,2525.3,2524.7,3.96077]
[1724865367206,3.95992,2525.3,2524.5,3.96108]
[1724865367207,4.751882,2525.3,2524.5,3.96108]
[1724865367391,3.96011,2525.2,2524.5,3.96108]
[1724865367991,3.96024,2525.1,2524.4,3.96123]
[1724865368197,7.92061,2525.1,2524.4,3.96123]
[1724865368391,3.96024,2525.1,2524.4,3.96123]
[1724865368609,3.96057,2524.9,2524.1,3.9617]
[1724865368920,3.96165,2524.2,2523.7,2.4988]
[1724865369121,3.96169,2524.2,2523.7,2.4988]
[1724865369430,6.23416,2524.6,2523.8,0.07923558]
[1724865369595,3.96106,2524.6,2523.9,3.9621]
[1724865369914,3.96149,2524.3,2523.9,0.07923]
[1724865370118,3.96135,2524.4,2523.7,2.4988]
[1724865370520,3.96135,2524.4,2523.8,0.07923152]
[1724865370721,5.053245,2524.6,2523.8,4.04150152]
[1724865370881,6.96076,2524.8,2524.0,3.96183]
[1724865370882,6.96077,2524.8,2524.0,3.96183]
[1724865371083,6.96088,2524.7,2524.1,0.0792261]
[1724865371385,3.96103,2524.6,2524.1,0.0792261]
[1724865371796,3.923387,2524.7,2524.1,4.0410261]
[1724865371797,0.923387,2524.7,2524.1,4.0410261]
[1724865371998,3.96102,2524.6,2523.9,3.96198]
[1724865372318,3.96118,2524.5,2524.0,0.55]
[1724865372520,4.4494357,2524.6,2523.8,0.55]
[1724865372722,3.96141,2524.4,2523.8,0.55]
[1724865372882,3.96141,2524.4,2523.9,0.07369942]
[1724865373078,3.96102,2524.6,2523.9,4.03580942]
[1724865373326,3.96074,2524.8,2524.0,4.04117154]
[1724865373523,0.623384,2524.7,2524.0,4.11477031]
[1724865374033,4.584344,2524.7,2524.0,4.11477031]
[1724865374684,3.96074,2524.8,2524.2,2.4853]
[1724865374924,3.96074,2524.8,2524.3,0.07922343]
[1724865375124,3.96074,2524.8,2524.3,0.07329688]
[1724865375504,7.92157,2524.8,2524.3,0.07329688]
[1724865375684,0.792157,2524.7,2524.3,0.07329688]
[1724865376324,7.92155,2524.8,2524.3,0.07329688]
[1724865376531,3.96074,2524.8,2524.3,0.07329688]
[1724865376835,0.41328087,2525.2,2523.1,2.4083]
[1724865376836,10.25676,2524.4,2523.1,2.4083]
[1724865377036,10.25676,2524.4,2523.4,3.96285]
[1724865377037,3.96192,2524.1,2523.4,3.96285]
[1724865377205,4.754263,2524.1,2523.4,3.96285]
[1724865377400,4.754263,2524.1,2523.5,3.96273]
[1724865377607,3.96151,2524.3,2523.5,8.0002094]
[1724865377824,3.96151,2524.3,2523.5,4.0374794]
[1724865378123,3.96191,2524.1,2523.5,0.0748594]
[1724865378446,3.96191,2524.1,2523.4,3.96281]
[1724865378810,3.96191,2524.1,2523.5,0.0748594]
[1724865378992,4.19501,2524.3,2523.5,4.0375994]
[1724865379334,4.614715,2524.2,2523.5,0.0748594]
[1724865379491,3.96182,2524.1,2523.5,0.0748594]
[1724865379690,3.96182,2524.1,2523.6,0.55]
[1724865379893,4.8427945,2524.1,2523.6,0.55]
[1724865380118,8.8047445,2524.1,2523.7,0.07465804]
[1724865380333,3.96197,2524.0,2523.7,0.07465804]
[1724865381039,14.17331,2523.8,2523.7,0.07465804]
[1724865381402,14.17331,2523.8,2522.8,2.3284]
[1724865381403,3.96338,2523.1,2522.5,2.4388]
[1724865381605,3.96355,2523.0,2522.5,2.4388]
[1724865381839,3.96309,2523.3,2522.6,0.15503749]
[1724865382137,3.96323,2523.2,2522.6,0.07576588]
[1724865382296,3.96309,2523.3,2522.7,0.07927078]
[1724865382495,3.96246,2523.7,2522.7,0.07927078]
[1724865382727,3.96246,2523.7,2523.0,2.3201]
[1724865382728,3.9626,2523.6,2523.0,2.3201]
[1724865383037,3.96246,2523.7,2523.1,0.07925875]
[1724865383241,3.96246,2523.7,2523.1,0.15452095]
[1724865383542,3.96259,2523.6,2523.1,0.0752622]
[1724865383897,6.96235,2523.8,2523.1,0.15452097]
[1724865384095,3.96247,2523.7,2523.1,0.07925877]